fUST/lending_fUST_20250722
["ID","MTS","AMOUNT","RATE_DAILY","PERIOD"]
[374085706,1753198248393,-2265.48,0.00018436,2]
[374085708,1753198248403,-460.0,0.00018436,2]
[374085710,1753198248413,-1795.97377448,0.00018452,2]
[374085712,1753198248423,-151.0,0.00018452,2]
[374085714,1753198248433,-539.8,0.00018508,2]
[374085716,1753198248443,-460.0,0.00018508,2]
[374085718,1753198248452,-671.44,0.00018508,2]
[374085721,1753198248462,-460.0,0.00018508,2]
[374085723,1753198248472,-238.179817,0.0001851,2]
[374085726,1753198248482,-1243.06,0.0001868,2]
[374085729,1753198248491,-460.0,0.0001868,2]
[374085732,1753198248501,-460.0,0.0001868,2]
[374085734,1753198248510,-460.0,0.0001868,2]
[374085736,1753198248520,-490.49,0.00018681,2]
[374085738,1753198248529,-937.1,0.00018681,2]
[374085741,1753198248541,-460.0,0.00018681,2]
[374085743,1753198248551,-460.0,0.00018681,2]
[374085745,1753198248560,-1053.64,0.00018681,2]
[374085747,1753198248570,-460.0,0.00018681,2]
[374085749,1753198248581,-1116.85,0.00018709,2]
[374085751,1753198248604,-460.0,0.00018709,2]
[374085753,1753198248623,-460.0,0.00018709,2]
[374085755,1753198248632,-989.44,0.0001871,2]
[374085757,1753198248642,-2265.48,0.0001871,2]
[374085759,1753198248652,-460.0,0.0001871,2]
[374085761,1753198248664,-1795.97377448,0.00018762,2]
[374085763,1753198248674,-539.8,0.00018782,2]
[374085765,1753198248683,-460.0,0.00018782,2]
[374085767,1753198248693,-671.44,0.00018782,2]
[374085769,1753198248704,-460.0,0.00018782,2]
[374085771,1753198248714,-1200.0,0.00018901,2]
[374085773,1753198248724,-1243.06,0.00018954,2]
[374085775,1753198248735,-460.0,0.00018954,2]
[374085777,1753198248746,-460.0,0.00018954,2]
[374085779,1753198248756,-460.0,0.00018954,2]
[374085781,1753198248765,-490.49,0.00018955,2]
[374085783,1753198248775,-937.1,0.00018955,2]
[374085785,1753198248785,-460.0,0.00018955,2]
[374085787,1753198248796,-460.0,0.00018955,2]
[374085790,1753198248806,-1053.64,0.00018955,2]
[374085792,1753198248816,-460.0,0.00018955,2]
[374085794,1753198248825,-1116.85,0.00018983,2]
[374085796,1753198248835,-460.0,0.00018983,2]
[374085797,1753198248844,-460.0,0.00018983,2]
[374085799,1753198248854,-989.44,0.00018984,2]
[374085801,1753198248864,-2265.48,0.00018984,2]
[374085803,1753198248874,-460.0,0.00018984,2]
[374085806,1753198248884,-1330.93779917,0.00019,5]
[374085808,1753198248894,-18000.0,0.00019,2]
[374085810,1753198248903,-539.8,0.00019056,2]
[374085812,1753198248913,-460.0,0.00019056,2]
[374085814,1753198248922,-671.44,0.00019056,2]
[374085816,1753198248931,-460.0,0.00019056,2]
[374085818,1753198248941,-1795.97377448,0.00019072,2]
[374085820,1753198248950,-223.0315306,0.00019111,2]
[374085822,1753198248960,-167.589621,0.00019178,2]
[374085824,1753198248969,-1243.06,0.00019228,2]
[374085826,1753198248978,-460.0,0.00019228,2]
[374085828,1753198248988,-460.0,0.00019228,2]
[374085830,1753198248997,-460.0,0.00019228,2]
[374085832,1753198249007,-490.49,0.00019229,2]
[374085834,1753198249016,-937.1,0.00019229,2]
[374085836,1753198249025,-460.0,0.00019229,2]
[374085838,1753198249035,-460.0,0.00019229,2]
[374085840,1753198249046,-1053.64,0.00019229,2]
[374085842,1753198249056,-506.68,0.00019229,2]
[374085844,1753198249066,-1116.85,0.00019257,2]
[374085846,1753198249075,-460.0,0.00019257,2]
[374085848,1753198249084,-460.0,0.00019257,2]
[374085850,1753198249094,-989.44,0.00019258,2]
[374085852,1753198249103,-2265.48,0.00019258,2]
[374085854,1753198249112,-460.0,0.00019258,2]
[374085855,1753198249120,-1000.0,0.00019298,2]
[374085858,1753198249130,-151.0,0.00019329,2]
[374085859,1753198249139,-539.8,0.0001933,2]
[374085862,1753198249148,-460.0,0.0001933,2]
[374085864,1753198249158,-671.44,0.0001933,2]
[374085865,1753198249168,-460.0,0.0001933,2]
[374085867,1753198249177,-1795.97377448,0.00019383,2]
[374085869,1753198249186,-151.0,0.000194,2]
[374085871,1753198249195,-503.50332979,0.00019473,2]
[374085873,1753198249204,-502.36811083,0.00019499,2]
[374085875,1753198249214,-500.0,0.00019499,2]
[374085878,1753198249223,-500.0,0.00019499,2]
[374085880,1753198249233,-500.0,0.00019499,2]
[374085881,1753198249241,-412.23605928,0.00019499,2]
[374085883,1753198249251,-500.0,0.00019499,2]
[374085886,1753198249262,-216625.60442174,0.000195,2]
[374085888,1753198249271,-151.0,0.000195,2]
[374085890,1753198249280,-151.0,0.000195,2]
[374085892,1753198249291,-151.0,0.000195,2]
[374085894,1753198249300,-151.0,0.000195,2]
[374085896,1753198249310,-151.0,0.000195,2]
[374085898,1753198249319,-151.0,0.000195,2]
[374085900,1753198249329,-151.0,0.000195,2]
[374085902,1753198249339,-151.0,0.000195,2]
[374085904,1753198249348,-151.0,0.000195,2]
[374085906,1753198249357,-151.0,0.000195,2]
[374085908,1753198249367,-151.95371,0.000195,2]
[374085910,1753198249377,-163.053534,0.000195,2]
[374085911,1753198249386,-163.053534,0.000195,2]
[374085913,1753198249396,-151.0,0.000195,2]
[374085915,1753198249405,-151.0,0.000195,2]
[374085918,1753198249415,-151.0,0.000195,2]
[374085920,1753198249424,-151.0,0.000195,2]
[374085922,1753198249433,-182.236014,0.000195,2]
[374085924,1753198249442,-182.236014,0.000195,2]
[374085926,1753198249452,-151.0,0.000195,2]
[374085928,1753198249461,-319.834557,0.000195,2]
[374085929,1753198249470,-319.834557,0.000195,2]
[374085931,1753198249480,-1160.265786,0.000195,2]
[374085933,1753198249490,-1160.265786,0.000195,2]
[374085935,1753198249500,-151.0,0.000195,2]
[374085938,1753198249509,-151.0,0.000195,2]
[374085940,1753198249518,-151.0,0.000195,2]
[374085941,1753198249527,-1243.06,0.00019502,2]
[374085943,1753198249538,-460.0,0.00019502,2]
[374085945,1753198249547,-460.0,0.00019502,2]
[374085947,1753198249557,-460.0,0.00019502,2]
[374085949,1753198249567,-490.49,0.00019503,2]
[374085951,1753198249577,-937.1,0.00019503,2]
[374085953,1753198249587,-460.0,0.00019503,2]
[374085955,1753198249596,-460.0,0.00019503,2]
[374085957,1753198249606,-1053.64,0.00019503,2]
[374085968,1753198249690,-758.62360557,0.00019512,2]
[374085970,1753198249710,-1116.85,0.00019531,2]
[374085972,1753198249720,-460.0,0.00019531,2]
[374085974,1753198249730,-460.0,0.00019531,2]
[374085977,1753198249741,-989.44,0.00019532,2]
[374085979,1753198249750,-2265.48,0.00019532,2]
[374085981,1753198249761,-460.0,0.00019532,2]
[374085983,1753198249771,-800.0,0.00019547,2]
[374085985,1753198249780,-539.8,0.00019604,2]
[374085987,1753198249790,-460.0,0.00019604,2]
[374085989,1753198249799,-671.44,0.00019604,2]
[374085991,1753198249809,-460.0,0.00019604,2]
[374085993,1753198249818,-1795.97377448,0.00019693,2]
[374085995,1753198249828,-1243.06,0.00019776,2]
[374085997,1753198249838,-460.0,0.00019776,2]
[374085999,1753198249847,-460.0,0.00019776,2]
[374086001,1753198249857,-460.0,0.00019776,2]
[374086003,1753198249866,-490.49,0.00019777,2]
[374086005,1753198249875,-937.1,0.00019777,2]
[374086007,1753198249885,-460.0,0.00019777,2]
[374086009,1753198249895,-460.0,0.00019777,2]
[374086011,1753198249904,-1053.64,0.00019777,2]
[374086013,1753198249913,-1200.0,0.00019801,2]
[374086015,1753198249922,-1116.85,0.00019805,2]
[374086017,1753198249931,-460.0,0.00019805,2]
[374086019,1753198249940,-460.0,0.00019805,2]
[374086021,1753198249950,-989.44,0.00019806,2]
[374086023,1753198249959,-2265.48,0.00019806,2]
[374086025,1753198249969,-460.0,0.00019806,2]
[374086027,1753198249979,-539.8,0.00019878,2]
[374086029,1753198249987,-460.0,0.00019878,2]
[374086031,1753198249997,-671.44,0.00019878,2]
[374086033,1753198250007,-460.0,0.00019878,2]
[374086035,1753198250016,-420.645,0.0001988,2]
[374086037,1753198250026,-214.56,0.00019935,2]
[374086039,1753198250035,-1795.97377448,0.00020003,2]
[374086041,1753198250045,-1243.06,0.0002005,2]
[374086043,1753198250055,-460.0,0.0002005,2]
[374086045,1753198250064,-460.0,0.0002005,2]
[374086047,1753198250074,-460.0,0.0002005,2]
[374086049,1753198250083,-490.49,0.00020051,2]
[374086052,1753198250093,-937.1,0.00020051,2]
[374086054,1753198250102,-460.0,0.00020051,2]
[374086056,1753198250111,-460.0,0.00020051,2]
[374086057,1753198250121,-1053.64,0.00020051,2]
[374086059,1753198250130,-1116.85,0.00020079,2]
[374086062,1753198250139,-460.0,0.00020079,2]
[374086063,1753198250148,-460.0,0.00020079,2]
[374086065,1753198250158,-989.44,0.0002008,2]
[374086067,1753198250167,-2265.48,0.0002008,2]
[374086069,1753198250176,-460.0,0.0002008,2]
[374086071,1753198250185,-539.8,0.00020152,2]
[374086073,1753198250195,-460.0,0.00020152,2]
[374086075,1753198250204,-671.44,0.00020152,2]
[374086078,1753198250213,-460.0,0.00020152,2]
[374086080,1753198250223,-151.0,0.00020153,2]
[374086082,1753198250232,-500.0,0.00020162,2]
[374086084,1753198250242,-168.0,0.00020246,2]
[374086086,1753198250250,-1795.97377448,0.00020314,3]
[374086088,1753198250260,-1243.06,0.00020324,2]
[374086090,1753198250271,-460.0,0.00020324,2]
[374086092,1753198250280,-460.0,0.00020324,2]
[374086094,1753198250290,-460.0,0.00020324,2]
[374086096,1753198250299,-490.49,0.00020325,2]
[374086098,1753198250309,-937.1,0.00020325,2]
[374086100,1753198250318,-460.0,0.00020325,2]
[374086102,1753198250328,-460.0,0.00020325,2]
[374086104,1753198250338,-1053.64,0.00020325,2]
[374086106,1753198250347,-1116.85,0.00020353,2]
[374086108,1753198250357,-202.04766741,0.00020353,2]
[374086110,1753198250367,-460.0,0.00020353,2]
[374086112,1753198250377,-989.44,0.00020354,2]
[374086114,1753198250386,-2265.48,0.00020354,2]
[374086116,1753198250396,-384.67524149,0.00020354,2]
[374086118,1753198250405,-151.0,0.00020357,2]
[374086120,1753198250415,-1000.0,0.00020394,2]
[374086122,1753198250425,-151.0,0.000204,4]
[374086124,1753198250434,-539.8,0.00020426,2]
[374086126,1753198250444,-460.0,0.00020426,2]
[374086128,1753198250453,-671.44,0.00020426,2]
[374086130,1753198250462,-460.0,0.00020426,2]
[374086132,1753198250473,-500.0,0.00020447,2]
[374086134,1753198250483,-502.64339329,0.00020447,2]
[374086136,1753198250492,-500.0,0.00020447,2]
[374086138,1753198250502,-500.0,0.00020447,2]
[374086140,1753198250511,-500.0,0.00020447,2]
[374086142,1753198250520,-500.0,0.00020447,2]
[374086144,1753198250529,-504.30457904,0.00020456,2]
[374086146,1753198250540,-500.0,0.00020456,2]
[374086149,1753198250549,-500.0,0.00020456,2]
[374086151,1753198250559,-304.97620169,0.00020456,2]
[374086152,1753198250568,-231.28369723,0.0002048,2]
[374086155,1753198250577,-168.0,0.00020568,2]
[374086157,1753198250587,-1243.06,0.00020598,2]
[374086159,1753198250596,-460.0,0.00020598,2]
[374086161,1753198250605,-460.0,0.00020598,2]
[374086162,1753198250615,-361.90525504,0.00020598,2]
[374086165,1753198250624,-490.49,0.00020599,2]
[374086167,1753198250633,-937.1,0.00020599,2]
[374086169,1753198250642,-460.0,0.00020599,2]
[374086171,1753198250652,-460.0,0.00020599,2]
[374086173,1753198250665,-1053.64,0.00020599,2]
[374086175,1753198250676,-1795.97377448,0.00020624,3]
[374086177,1753198250685,-1116.85,0.00020627,2]
[374086179,1753198250695,-460.0,0.00020627,2]
[374086181,1753198250705,-989.44,0.00020628,2]
[374086183,1753198250715,-2265.48,0.00020628,2]
[374086185,1753198250724,-173.31302,0.00020668,8]
[374086187,1753198250734,-357.0,0.00020696,2]
[374086189,1753198250744,-539.8,0.000207,2]
[374086191,1753198250754,-460.0,0.000207,2]
[374086193,1753198250763,-671.44,0.000207,2]
[374086195,1753198250773,-460.0,0.000207,2]
[374086197,1753198250782,-1200.0,0.00020701,2]
[374086199,1753198250792,-357.0,0.00020709,2]
[374086201,1753198250802,-357.0,0.00020744,2]
[374086203,1753198250811,-357.0,0.00020744,2]
[374086205,1753198250821,-357.0,0.00020748,2]
[374086207,1753198250830,-758.62360557,0.00020785,2]
[374086209,1753198250840,-1000.0,0.00020791,5]
[374086211,1753198250849,-357.0,0.00020799,2]
[374086213,1753198250858,-500.0,0.00020822,2]
[374086215,1753198250867,-500.0,0.00020822,2]
[374086217,1753198250877,-168.0,0.00020856,2]
[374086219,1753198250886,-357.0,0.00020867,2]
[374086221,1753198250896,-1243.06,0.00020872,2]
[374086223,1753198250906,-460.0,0.00020872,2]
[374086225,1753198250915,-397.57695608,0.00020872,2]
[374086227,1753198250925,-490.49,0.00020873,2]
[374086229,1753198250934,-937.1,0.00020873,2]
[374086231,1753198250943,-460.0,0.00020873,2]
[374086233,1753198250952,-542.53,0.00020873,2]
[374086235,1753198250962,-1053.64,0.00020873,2]
[374086237,1753198250971,-357.0,0.00020887,2]
[374086240,1753198250981,-526.23456936,0.000209,2]
[374086241,1753198250991,-1116.85,0.00020901,2]
[374086243,1753198251000,-460.0,0.00020901,2]
[374086246,1753198251010,-989.44,0.00020902,2]
[374086248,1753198251019,-2265.48,0.00020902,2]
[374086250,1753198251028,-1795.97377448,0.00020934,4]
[374086252,1753198251038,-539.8,0.00020974,2]
[374086254,1753198251048,-460.0,0.00020974,2]
[374086256,1753198251057,-671.44,0.00020974,2]
[374086258,1753198251066,-460.0,0.00020974,2]
[374086260,1753198251076,-357.0,0.00020988,2]
[374086262,1753198251085,-502.39595311,0.00020995,2]
[374086264,1753198251094,-218.33169195,0.00020995,2]
[374086266,1753198251104,-357.0,0.0002101,2]
[374086268,1753198251114,-357.0,0.00021026,2]
[374086270,1753198251125,-14391.39072724,0.00021056,2]
[374086272,1753198251135,-1222.62627825,0.0002109,2]
[374086274,1753198251144,-223.940845,0.0002109,2]
[374086276,1753198251153,-1209.25725793,0.0002109,2]
[374086278,1753198251163,-357.0,0.00021096,2]
[374086280,1753198251172,-500.0,0.00021096,2]
[374086282,1753198251181,-500.0,0.00021096,2]
[374086284,1753198251190,-3000.0,0.000211,2]
[374086286,1753198251200,-3000.0,0.0002111,2]
[374086288,1753198251209,-357.0,0.00021111,2]
[374086290,1753198251219,-3000.0,0.0002112,2]
[374086292,1753198251228,-3000.0,0.0002113,2]
[374086294,1753198251237,-319.834557,0.0002113,2]
[374086296,1753198251246,-319.834557,0.0002113,2]
[374086298,1753198251256,-3000.0,0.0002114,2]
[374086300,1753198251265,-151.0,0.0002114,2]
[374086302,1753198251274,-151.0,0.0002114,2]
[374086304,1753198251283,-1243.06,0.00021146,2]
[374086306,1753198251294,-460.0,0.00021146,2]
[374086308,1753198251304,-490.49,0.00021147,2]
[374086310,1753198251314,-937.1,0.00021147,2]
[374086312,1753198251323,-460.0,0.00021147,2]
[374086314,1753198251333,-1053.64,0.00021147,2]
[374086316,1753198251342,-3000.0,0.0002115,2]
[374086318,1753198251352,-151.0,0.0002115,2]
[374086320,1753198251361,-151.0,0.00021157,4]
[374086322,1753198251371,-3000.0,0.0002116,2]
[374086323,1753198251380,-3000.0,0.0002117,2]
[374086324,1753198251389,-152.029843,0.0002117,2]
[374086325,1753198251398,-151.0,0.0002117,2]
[374086326,1753198251407,-1116.85,0.00021175,2]
[374086327,1753198251417,-460.0,0.00021175,2]
[374086328,1753198251426,-989.44,0.00021176,2]
[374086329,1753198251435,-2265.48,0.00021176,2]
[374086330,1753198251445,-3000.0,0.0002118,2]
[374086331,1753198251454,-3000.0,0.0002119,2]
[374086332,1753198251463,-151.0,0.0002119,2]
[374086333,1753198251473,-151.0,0.0002119,2]
[374086334,1753198251483,-151.0,0.0002119,2]
[374086335,1753198251492,-151.0,0.0002119,2]
[374086336,1753198251501,-3000.0,0.000212,2]
[374086337,1753198251511,-3000.0,0.0002121,2]
[374086338,1753198251520,-151.0,0.0002121,2]
[374086339,1753198251530,-151.0,0.0002121,2]
[374086340,1753198251540,-151.0,0.0002121,2]
[374086341,1753198251551,-152.175719,0.0002121,2]
[374086342,1753198251560,-151.0,0.0002121,2]
[374086343,1753198251570,-151.0,0.0002121,2]
[374086344,1753198251580,-163.053534,0.0002121,2]
[374086346,1753198251590,-163.053534,0.0002121,2]
[374086348,1753198251600,-151.0,0.0002121,2]
[374086350,1753198251609,-151.0,0.0002121,2]
[374086352,1753198251619,-151.0,0.0002121,2]
[374086354,1753198251628,-182.236014,0.0002121,2]
[374086356,1753198251637,-182.236014,0.0002121,2]
[374086358,1753198251647,-1160.265786,0.0002121,2]
[374086360,1753198251657,-1160.265786,0.0002121,2]
[374086362,1753198251668,-357.0,0.00021214,2]
[374086364,1753198251677,-3000.0,0.0002122,2]
[374086366,1753198251687,-3000.0,0.0002123,2]
[374086368,1753198251696,-3000.0,0.0002124,2]
[374086370,1753198251706,-151.0,0.0002124,2]
[374086372,1753198251715,-1795.97377448,0.00021245,4]
[374086374,1753198251725,-539.8,0.00021248,2]
[374086376,1753198251736,-460.0,0.00021248,2]
[374086386,1753198251828,-671.44,0.00021248,2]
[374086388,1753198251838,-460.0,0.00021248,2]
[374086390,1753198251848,-3000.0,0.0002125,2]
[374086392,1753198251857,-3000.0,0.0002126,2]
[374086394,1753198251866,-3000.0,0.0002127,2]
[374086396,1753198251876,-3000.0,0.0002128,2]
[374086398,1753198251885,-3000.0,0.0002129,2]
[374086400,1753198251895,-3000.0,0.000213,2]
[374086402,1753198251905,-3000.0,0.0002131,2]
[374086404,1753198251914,-357.0,0.00021316,2]
[374086406,1753198251923,-3000.0,0.0002132,2]
[374086408,1753198251932,-3000.0,0.0002133,2]
[374086410,1753198251942,-168.0,0.00021334,2]
[374086412,1753198251951,-3000.0,0.0002134,2]
[374086414,1753198251960,-3000.0,0.0002135,2]
[374086416,1753198251969,-4501.705054,0.0002136,2]
[374086418,1753198251979,-357.0,0.00021368,2]
[374086420,1753198251988,-500.0,0.0002137,2]
[374086422,1753198251997,-500.0,0.0002137,2]
[374086424,1753198252006,-5657.0,0.00021403,2]
[374086426,1753198252014,-357.0,0.00021408,2]
[374086428,1753198252024,-357.0,0.00021419,2]
[374086429,1753198252033,-1243.06,0.0002142,2]
[374086431,1753198252042,-460.0,0.0002142,2]
[374086433,1753198252051,-490.49,0.00021421,2]
[374086435,1753198252060,-937.1,0.00021421,2]
[374086437,1753198252069,-460.0,0.00021421,2]
[374086439,1753198252079,-1053.64,0.00021421,2]
[374086441,1753198252088,-357.0,0.00021431,2]
[374086443,1753198252098,-1116.85,0.00021449,2]
[374086445,1753198252107,-460.0,0.00021449,2]
[374086447,1753198252116,-989.44,0.0002145,2]
[374086449,1753198252125,-2265.48,0.0002145,2]
[374086451,1753198252134,-357.0,0.00021467,2]
[374086453,1753198252143,-286.08,0.00021469,2]
[374086455,1753198252152,-1000.0,0.0002149,2]
[374086457,1753198252162,-2214.94518694,0.000215,2]
[374086459,1753198252171,-539.8,0.00021522,2]
[374086461,1753198252180,-460.0,0.00021522,2]
[374086463,1753198252189,-671.44,0.00021522,2]
[374086465,1753198252199,-460.0,0.00021522,2]
[374086467,1753198252208,-301.0,0.00021562,5]
[374086469,1753198252218,-1200.0,0.00021601,2]
[374086471,1753198252227,-151.0,0.0002162,5]
[374086473,1753198252236,-500.0,0.00021644,2]
[374086475,1753198252246,-500.0,0.00021644,2]
[374086477,1753198252255,-1243.06,0.00021694,2]
[374086479,1753198252265,-460.0,0.00021694,2]
[374086481,1753198252274,-490.49,0.00021695,2]
[374086483,1753198252284,-937.1,0.00021695,2]
[374086485,1753198252295,-511.19116879,0.00021695,2]
[374086487,1753198252305,-1053.64,0.00021695,2]
[374086489,1753198252315,-1116.85,0.00021723,2]
[374086491,1753198252324,-460.0,0.00021723,2]
[374086493,1753198252333,-989.44,0.00021724,2]
[374086495,1753198252343,-2265.48,0.00021724,2]
[374086497,1753198252352,-539.8,0.00021796,2]
[374086499,1753198252361,-460.0,0.00021796,2]
[374086501,1753198252370,-671.44,0.00021796,2]
[374086502,1753198252379,-460.0,0.00021796,2]
[374086504,1753198252389,-1000.0,0.000218,7]
[374086506,1753198252399,-605.93941817,0.00021802,8]
[374086508,1753198252408,-239.84119403,0.00021849,2]
[374086510,1753198252417,-250.0,0.00021892,2]
[374086512,1753198252427,-500.0,0.00021917,2]
[374086514,1753198252436,-503.90467185,0.00021917,2]
[374086516,1753198252445,-500.0,0.00021918,2]
[374086518,1753198252455,-500.0,0.00021918,2]
[374086520,1753198252464,-1243.06,0.00021968,2]
[374086522,1753198252474,-283.33851167,0.00021968,2]
[374086524,1753198252483,-490.49,0.00021969,2]
[374086526,1753198252492,-937.1,0.00021969,2]
[374086528,1753198252502,-1053.64,0.00021969,2]
[374086530,1753198252511,-1116.85,0.00021997,2]
[374086532,1753198252521,-460.0,0.00021997,2]
[374086534,1753198252530,-989.44,0.00021998,2]
[374086536,1753198252542,-2265.48,0.00021998,2]
[374086538,1753198252551,-367.27,0.00022,7]
[374086540,1753198252560,-750.81,0.00022,7]
[374086542,1753198252569,-4536.7,0.00022,7]
[374086544,1753198252578,-19642.97,0.00022,2]
[374086546,1753198252587,-319.834557,0.00022,7]
[374086548,1753198252596,-319.834557,0.00022,7]
[374086550,1753198252606,-151.0,0.00022,7]
[374086552,1753198252615,-151.0,0.00022,7]
[374086553,1753198252624,-172.0,0.00022,2]
[374086555,1753198252634,-758.62360557,0.00022058,2]
[374086557,1753198252643,-260.007,0.0002207,7]
[374086559,1753198252652,-191.524113,0.0002207,7]
[374086561,1753198252666,-151.0,0.0002207,7]
[374086563,1753198252675,-539.8,0.0002207,2]
[374086565,1753198252685,-163.053534,0.0002207,7]
[374086567,1753198252695,-163.053534,0.0002207,7]
[374086569,1753198252705,-460.0,0.0002207,2]
[374086571,1753198252715,-151.0,0.0002207,7]
[374086573,1753198252725,-151.0,0.0002207,7]
[374086575,1753198252735,-182.236014,0.0002207,7]
[374086577,1753198252745,-182.236014,0.0002207,7]
[374086579,1753198252755,-671.44,0.0002207,2]
[374086581,1753198252764,-460.0,0.0002207,2]
[374086583,1753198252773,-151.0,0.00022083,5]
[374086585,1753198252783,-2024.39,0.00022158,3]
[374086587,1753198252794,-151.0,0.00022158,7]
[374086589,1753198252803,-151.0,0.00022158,7]
[374086590,1753198252812,-233.341577,0.00022158,7]
[374086592,1753198252821,-175.779188,0.00022158,7]
[374086594,1753198252831,-172.0,0.00022192,7]
[374086596,1753198252841,-500.0,0.00022192,2]
[374086598,1753198252850,-500.0,0.00022192,2]
[374086600,1753198252860,-1243.06,0.00022242,2]
[374086602,1753198252870,-151.0,0.00022243,7]
[374086604,1753198252879,-490.49,0.00022243,2]
[374086606,1753198252888,-151.0,0.00022243,7]
[374086608,1753198252898,-937.1,0.00022243,2]
[374086610,1753198252907,-1160.265786,0.00022243,7]
[374086612,1753198252917,-1160.265786,0.00022243,7]
[374086614,1753198252926,-1053.64,0.00022243,2]
[374086616,1753198252936,-151.0,0.00022271,7]
[374086618,1753198252945,-151.0,0.00022271,7]
[374086620,1753198252954,-151.0,0.00022271,7]
[374086622,1753198252963,-1116.85,0.00022271,2]
[374086624,1753198252972,-460.0,0.00022271,2]
[374086625,1753198252981,-989.44,0.00022272,2]
[374086627,1753198252991,-2265.48,0.00022272,2]
[374086629,1753198253000,-539.8,0.00022344,2]
[374086631,1753198253011,-460.0,0.00022344,2]
[374086633,1753198253021,-671.44,0.00022344,2]
[374086635,1753198253030,-460.0,0.00022344,2]
[374086637,1753198253043,-825.888,0.00022362,4]
[374086639,1753198253052,-151.0,0.00022367,7]
[374086641,1753198253061,-151.0,0.00022367,7]
[374086643,1753198253070,-151.0,0.00022367,7]
[374086645,1753198253080,-152.706445,0.00022367,7]
[374086647,1753198253089,-152.706445,0.00022367,7]
[374086649,1753198253099,-2031.86,0.00022465,2]
[374086651,1753198253109,-500.0,0.00022466,2]
[374086653,1753198253118,-500.0,0.00022466,2]
[374086655,1753198253129,-1243.06,0.00022516,2]
[374086657,1753198253139,-490.49,0.00022517,2]
[374086660,1753198253150,-937.1,0.00022517,2]
[374086661,1753198253159,-1053.64,0.00022517,2]
[374086663,1753198253168,-1116.85,0.00022545,2]
[374086665,1753198253178,-460.0,0.00022545,2]
[374086667,1753198253187,-989.44,0.00022546,2]
[374086669,1753198253196,-151.0,0.00022546,5]
[374086671,1753198253206,-2265.48,0.00022546,2]
[374086673,1753198253215,-968.0,0.00022567,2]
[374086675,1753198253225,-648.0,0.00022567,2]
[374086677,1753198253235,-302.96970909,0.0002261,8]
[374086679,1753198253244,-539.8,0.00022618,2]
[374086681,1753198253253,-460.0,0.00022618,2]
[374086683,1753198253263,-671.44,0.00022618,2]
[374086685,1753198253272,-266.27600416,0.00022618,2]
[374086687,1753198253282,-617.45,0.00022646,4]
[374086689,1753198253292,-562.39,0.00022665,6]
[374086691,1753198253301,-500.0,0.0002274,2]
[374086693,1753198253311,-500.0,0.0002274,2]
[374086695,1753198253321,-617.454882,0.00022746,4]
[374086697,1753198253330,-540.41,0.00022755,5]
[374086699,1753198253340,-562.39,0.00022765,4]
[374086701,1753198253350,-1243.06,0.0002279,2]
[374086703,1753198253360,-490.49,0.00022791,2]